Cogmind - Beta 10.1 @@@ ROGUE MODE // 2020.10.09 @ 12:02:12 Player: Basking Result: Destroyed by as-46847 with Assembled Blade Performance ------------- Evolutions (0) 0 Regions Visited (4) 800 Robots Destroyed (31) 155 Value Destroyed (366) 366 Prototype IDs (23) 460 Alien Tech Used (0) 0 Bonus (300) 300 TOTAL SCORE: 2081 Bonus ------- Aligned with FarCom 300 Cogmind --------- Core Integrity 0/250 Matter 229/300 Energy 24/100 System Corruption 5% Temperature Cool (0) Movement Flying (120) Ox1 Location -9/Mines Parts ------- > --- POWER (1) -------- (None) > --- PROPULSION (2) --- Flight Unit > --- UTILITY (2) ------ Lightpack 2.0 > --- WEAPON (2) ------- Light Assault Rifle > --- INVENTORY (24) --- Flight Unit Flight Unit Improved Heat Sink Medium Storage Unit Propulsion Shielding Light Assault Rifle Light Assault Rifle Peak State ------------ > --- POWER ------------ Light Nuclear Core > --- PROPULSION ------- Flight Unit Flight Unit > --- UTILITY ---------- Lightpack 2.0 > --- WEAPON ----------- Light Assault Rifle Rocket Launcher > --- INVENTORY -------- Flight Unit Flight Unit Flight Unit Flight Unit Flight Unit Improved Heat Sink Medium Storage Unit Propulsion Shielding Light Assault Rifle Light Assault Rifle Light Assault Rifle [Rating: 29] Favorites ----------- Power Light Nuclear Core Engine Ion Engine Power Core Light Nuclear Core Propulsion Aluminum Leg Leg Aluminum Leg Flight Unit Flight Unit Utility Small Storage Unit Device Improved Heat Sink Storage Small Storage Unit Weapon Assault Rifle Ballistic Gun Assault Rifle Launcher Rocket Launcher Build | -11 -10 -10 -10 -9 ------- Run | Scr Mat Min Exi Min Slots Evolved . | . . . . . Power . | . . . . . Propulsion . | . . . . . Utility . | . . . . . Weapon . | . . . . . Parts Attached 26 | 6 1 4 2 13 Power 3 | 1 . 2 . . Engine 1 | 1 . . . . Core 2 | . . 2 . . Reactor . | . . . . . Propulsion 7 | 2 . . . 5 Treads . | . . . . . Leg 2 | 2 . . . . Wheel . | . . . . . Hover . | . . . . . Flight 5 | . . . . 5 Utility 5 | 1 1 1 2 . Device 2 | . 1 1 . . Storage 3 | 1 . . 2 . Processor . | . . . . . Hackware . | . . . . . Protection . | . . . . . Artifact . | . . . . . Weapon 11 | 2 . 1 . 8 Energy Gun . | . . . . . Energy Cannon . | . . . . . Ballistic Gun 10 | 2 . 1 . 7 Ballistic Cannon . | . . . . . Launcher 1 | . . . . 1 Special Weapon . | . . . . . Impact Weapon . | . . . . . Slashing Weapon . | . . . . . Piercing Weapon . | . . . . . Special Melee Weapon . | . . . . . Unidentified Prototypes . | . . . . . Parts Lost 11 | . . 1 . 10 Power 1 | . . . . 1 Propulsion 5 | . . . . 5 Utility . | . . . . . Weapon 5 | . . 1 . 4 Highest Loss Streak 7 | . . 1 . 7 Average Slot Usage (%) 95 | . 99 100 98 80 Engine 2 | . 14 3 . . Core 11 | . . 10 14 13 Leg 23 | . 28 28 28 1 Flight 4 | . . . . 24 Device 10 | . 13 14 12 . Storage 14 | . 14 14 14 14 Ballistic Gun 27 | . 28 28 28 25 Naked Turns . | . . . . . Heaviest Build 17 | 13 14 14 17 14 Greatest Support 20 | 20 20 20 20 20 Greatest Overweight (x) 3 | 1 . . . 3 Average Overweight (x) . | . . . . . Largest Inventory Capacity 24 | 6 6 6 24 24 Average Capacity 10 | 5 6 6 8 24 Most Carried 12 | 6 6 6 8 12 Average Carried 6 | 3 5 5 6 9 Final Capacity 24 | 6 6 6 24 24 Final Carried 8 | 6 6 6 8 7 Class Distribution -------------------- 77% | Mutant 22% | Hauler-Mutant Dominant Class ---------------- Mutant | -10/Materials Mutant | -10/Mines Mutant | -10/Exiles Hauler-Mutant | -9/Mines Resources | -11 -10 -10 -10 -9 ----------- Run | Scr Mat Min Exi Min Matter Collected 577 | 183 159 132 . 103 Remotely . | . . . . . Salvage Created 496 | . 135 227 . 134 Parts 41 | . 9 17 . 15 Haulers Intercepted . | . . . . . Recyclers Shooed 1 | . 1 . . . Parts Field Recycled . | . . . . . Retrieved Matter . | . . . . . Parts Self-Destructed . | . . . . . Prevented . | . . . . . Kills | -11 -10 -10 -10 -9 ------- Run | Scr Mat Min Exi Min Combat Hostiles Destroyed 31 | . 5 9 . 17 Guns 21 | . 5 9 . 7 AOE 10 | . . . . 10 Classes Destroyed 3 | . 2 . . 1 Swarmer 16 | . 3 6 . 7 Grunt 5 | . 2 3 . . Assembled 10 | . . . . 10 Best Kill Streak 10 | . 3 6 . 10 Combat Bots Only 10 | . 3 6 . 10 Max Kills in Single Turn 5 | . 1 2 . 5 Gunslinging 1 | . . 1 . 1 Exploded 5 | . . . . 5 Melee . | . . . . . Uniques/NPCs Destroyed . | . . . . . Combat | -11 -10 -10 -10 -9 -------- Run | Scr Mat Min Exi Min Damage Taken 1300 | . 117 306 . 877 Core 269 | . 18 29 . 222 Absorbed by Shields . | . . . . . Core Remaining (%) 100 | 100 . . . . Volleys Fired 50 | . 12 19 . 19 Largest 2 | . 2 2 . 2 Hottest 40 | . 40 40 . 40 Shots Fired 89 | . 24 35 . 30 Gun 85 | . 24 35 . 26 Cannon . | . . . . . Launcher 4 | . . . . 4 Special . | . . . . . Kinetic 85 | . 24 35 . 26 Thermal . | . . . . . Explosive 4 | . . . . 4 Electromagnetic . | . . . . . Robot Hit Streak 8 | . 5 8 . 7 Robot Miss Streak 2 | . 2 2 . 2 Penetration Max . | . . . . . Secondary Targets 5 | . . 2 . 3 Max Gunslinging Chain 1 | . . 1 . 1 Shots Hit Robots 57 | . 15 23 . 19 Core Hits 52 | . 7 13 . 32 Critical Hits 3 | . . 1 . 2 Critical Kills 2 | . . 1 . 1 Critical Parts Destroyed 1 | . . . . 1 Melee Attacks . | . . . . . Impact . | . . . . . Slashing . | . . . . . Piercing . | . . . . . Sneak Attacks . | . . . . . Combat Hostiles . | . . . . . Follow-up Attacks . | . . . . . Damage Inflicted 1368 | . 178 226 . 964 Guns 560 | . 178 226 . 156 Cannons . | . . . . . Explosions 808 | . . . . 808 Melee . | . . . . . Ramming . | . . . . . Kinetic 560 | . 178 226 . 156 Thermal . | . . . . . Explosive 808 | . . . . 808 Electromagnetic . | . . . . . Impact . | . . . . . Slashing . | . . . . . Piercing . | . . . . . Highest Corruption 5 | . . . . 5 Average Corruption 3 | . . . . 3 Corruption Purged . | . . . . . Overload Shots . | . . . . . Overflow Damage 28 | . . . . 28 Projectiles . | . . . . . Explosions 28 | . . . . 28 Melee . | . . . . . Knockbacks . | . . . . . Impact . | . . . . . Kinetic . | . . . . . Secondary . | . . . . . Self-Inflicted Damage 155 | . . . . 155 Shots 4 | . . . . 4 Rammed . | . . . . . Targets Rammed . | . . . . . Kicked . | . . . . . Crushed . | . . . . . Highest Temperature 16 | . . . . 16 Average Temperature 5 | . . . . 5 Received Heat Transfer 184 | . 30 114 . 40 Siege Activations . | . . . . . Robots Corrupted . | . . . . . Combat Hostiles . | . . . . . Parts Fried . | . . . . . Impact Corruptions . | . . . . . Robots Melted . | . . . . . Combat Hostiles . | . . . . . Parts Melted . | . . . . . Heat Transferred . | . . . . . Parts Sabotaged . | . . . . . Parts Stolen . | . . . . . Parts Stripped . | . . . . . Power Chain Reactions . | . . . . . Missiles Intercepted . | . . . . . Alert | -11 -10 -10 -10 -9 ------- Run | Scr Mat Min Exi Min Peak Influence 272 | . 160 272 . 145 Initial 62 | . . 62 . . Average 94 | . 49 133 . 111 Maximum Alert Level 1 | . . 1 . . Low Security (%) 94 | 100 100 80 . 100 Level 1 5 | . . 19 . . Level 2 . | . . . . . Level 3 . | . . . . . Level 4 . | . . . . . Level 5 . | . . . . . High Security . | . . . . . Max Security . | . . . . . Squads Dispatched 1 | . 1 . . . Investigation . | . . . . . Extermination . | . . . . . Reinforcement 1 | . 1 . . . Assault . | . . . . . Garrison . | . . . . . Intercept . | . . . . . Construction Impeded . | . . . . . Haulers Reinforced . | . . . . . Stealth | -11 -10 -10 -10 -9 --------- Run | Scr Mat Min Exi Min Distress Signals . | . . . . . Communications Jammed . | . . . . . Distress Signals . | . . . . . Times Spotted 43 | . 6 11 . 26 Peak Tracking Total 17 | . 3 6 . 17 Tactical Retreats 2 | . . 2 . . Traps | -11 -10 -10 -10 -9 ------- Run | Scr Mat Min Exi Min Traps Triggered . | . . . . . Indirectly . | . . . . . Trap Hack Attempts . | . . . . . Triggered . | . . . . . Disarmed . | . . . . . Reprogrammed . | . . . . . Reused . | . . . . . Traps Extracted . | . . . . . Installed . | . . . . . Triggered . | . . . . . Machines | -11 -10 -10 -10 -9 ---------- Run | Scr Mat Min Exi Min Machines Disabled 1 | . 1 . . . Max in Single Turn 1 | . 1 . . . Machines Sabotaged . | . . . . . Garrisons Compromised . | . . . . . Overloaded Fab Kills . | . . . . . Fab Network Shutdowns . | . . . . . Hacking | -11 -10 -10 -10 -9 --------- Run | Scr Mat Min Exi Min Machines Accessed 9 | . 4 . 5 . Terminals 3 | . 3 . . . Fabricators . | . . . . . Repair Stations . | . . . . . Recycling Units 1 | . 1 . . . Scanalyzers . | . . . . . Garrison Access . | . . . . . Total Hacks 69 | . 19 . 50 . Successful 63 | . 13 . 50 . Failed 6 | . 6 . . . Catastrophic . | . . . . . Database Lockouts . | . . . . . Manual 3 | . . . 3 . Terminals 16 | . 16 . . . Fabricators . | . . . . . Repair Stations . | . . . . . Recycling Units 3 | . 3 . . . Scanalyzers . | . . . . . Garrison Access . | . . . . . Terminal Hacks 61 | . 11 . 50 . Record 55 | . 6 . 49 . Robot Analysis 1 | . 1 . . . Locate Traps 1 | . 1 . . . Investigation Status 1 | . 1 . . . Recall Investigation 1 | . 1 . . . Hauler Manifests 1 | . 1 . . . EX-Prototype ID Bank 1 | . . . 1 . Fabricator Hacks . | . . . . . Repair Station Hacks . | . . . . . Recycling Unit Hacks 2 | . 2 . . . Report Inventory 1 | . 1 . . . Retrieve Matter 1 | . 1 . . . Scanalyzer . | . . . . . Garrison Access Hacks . | . . . . . Unauthorized Hacks . | . . . . . Terminals . | . . . . . Fabricators . | . . . . . Repair Stations . | . . . . . Recycling Units . | . . . . . Scanalyzers . | . . . . . Garrison Access . | . . . . . Data Cores Recovered . | . . . . . Used . | . . . . . Hacking Detections 3 | . 3 . . . Full Trace Events 1 | . 1 . . . Feedback Events . | . . . . . Feedback Blocked . | . . . . . Robot Schematics Acquired . | . . . . . Robots Built . | . . . . . Matter . | . . . . . Time . | . . . . . Total Robot Build Rating . | . . . . . Part Schematics Acquired . | . . . . . Parts Built . | . . . . . Matter . | . . . . . Time . | . . . . . Total Part Build Rating . | . . . . . Parts Repaired . | . . . . . Time . | . . . . . Parts Recycled . | . . . . . Recycled Matter . | . . . . . Retrieved Matter . | . . . . . Retrieved Components . | . . . . . Parts Scanalyzed . | . . . . . Part Schematics Acquired . | . . . . . Parts Damaged . | . . . . . Bothacking | -11 -10 -10 -10 -9 ------------ Run | Scr Mat Min Exi Min Used RIF Installer . | . . . . . Robots Hacked . | . . . . . Non-combat . | . . . . . Combat . | . . . . . Robot Hacks Applied . | . . . . . Relay Couplers Released . | . . . . . Robots Rewired . | . . . . . Allies Hacked . | . . . . . Hacks Repelled . | . . . . . Allies | -11 -10 -10 -10 -9 -------- Run | Scr Mat Min Exi Min Total Allies . | . . . . . Largest Group . | . . . . . Highest-Rated Group . | . . . . . Highest-Rated Ally . | . . . . . Total Orders . | . . . . . Ally Attacks . | . . . . . Total Damage . | . . . . . Kills . | . . . . . Allies Corrupted . | . . . . . Allies Melted . | . . . . . Intel | -11 -10 -10 -10 -9 ------- Run | Scr Mat Min Exi Min Robot Analysis Total 1 | . 1 . . . Derelict Logs Recovered 1 | . . . . 1 Drone Launches . | . . . . . Drone Recoveries . | . . . . . Exploration | -11 -10 -10 -10 -9 ------------- Run | Scr Mat Min Exi Min Turns Passed 2524 | 69 337 380 1287 451 Spaces Moved 1925 | 50 244 241 1066 324 Core 11 | 11 . . . . Treads . | . . . . . Legs 1604 | 39 244 241 1066 14 Wheels . | . . . . . Hover . | . . . . . Flight 310 | . . . . 310 Fastest Speed 50 | 50 120 120 120 117 Average Speed 119 | 108 120 120 120 118 Slowest Speed 280 | 120 120 120 120 280 Overloaded Moves . | . . . . . Propulsion Burnouts . | . . . . . Robots Hopped . | . . . . . Cave-ins Triggered . | . . . . . Exploration Rate (%) 49 | 4 32 45 94 70 Regions Visited 4 Branch Regions 3 Pre-discovered Areas 1 | . . . 1 . Known Exits Taken . | . . . . . Unknown Exits Taken 4 | 1 1 1 1 . Scrap Searched 2 | . . 1 . 1 Spaces Dug . | . . . . . Terrain Destroyed 46 | . . . . 46 Melee . | . . . . . Projectile . | . . . . . AOE 46 | . . . . 46 Terrain Rammed . | . . . . . Walls Destroyed . | . . . . . Machines Disabled . | . . . . . Actions | -11 -10 -10 -10 -9 --------- Run | Scr Mat Min Exi Min Total 2067 | 61 266 299 1076 365 Wait 28 | . . 28 . . Move 1921 | 49 243 240 1065 324 Hop . | . . . . . Pick Up 24 | 6 5 3 4 6 Fast Attach 9 | 6 1 1 1 . Attach 9 | . . . . 9 Detach 2 | . . . . 2 Swap 8 | . . 3 1 4 Drop 16 | . 5 5 5 1 Fire 50 | . 12 19 . 19 Melee . | . . . . . Ram . | . . . . . Kick . | . . . . . Crush . | . . . . . Escape Stasis . | . . . . . Rewire . | . . . . . Trap . | . . . . . Miscellaneous . | . . . . . Route ------- -11/Scrapyard -10/Materials -10/Mines -10/Exiles (discovered 2 exits: [*Min x2]) -9/Mines History --------- Turn | Location | Event 2 | -11/Scrapyard | Met Revision 17 7 | -11/Scrapyard | Discovered new exit (range 15) 70 | -11/Scrapyard | Entered Materials 98 | -10/Materials | Discovered new exit (range 16) 307 | -10/Materials | Build established: Mutant 407 | -10/Materials | Entered Mines 780 | -10/Mines | Deemed a non-threat by the Exiles lab entrance 781 | -10/Mines | Discovered new exit (range 5) 787 | -10/Mines | Entered Exiles 819 | -10/Exiles | Met 8R-AWN 849 | -10/Exiles | Discovered new exit (range 15) 903 | -10/Exiles | Met EX-HEX 964 | -10/Exiles | Met EX-DEC 1026 | -10/Exiles | Learned location of Zion (-7) 1091 | -10/Exiles | Met EX-BIN 1109 | -10/Exiles | Aligned with FarCom system 1110 | -10/Exiles | Given EX-Vault access code 1346 | -10/Exiles | Visited The Gauntlet 1521 | -10/Exiles | Discovered new exit (range 14) 1911 | -10/Exiles | Opened EX-Vault 1943 | -10/Exiles | Found Lightpack 2.0 1981 | -10/Exiles | Warned to stay clear of 0b10 Research branches 2074 | -10/Exiles | Left Exiles lab with Lightpack 2.0 2074 | -10/Exiles | Entered Mines 2225 | -9/Mines | Build established: Hauler-Mutant 2400 | -9/Mines | Learned location of 1 exit from Materials 2451 | -9/Mines | Received a Rocket Launcher from a helpful Derelict 2485 | -9/Mines | Assembled infested the area 2514 | -9/Mines | Core integrity fell below 50% 2517 | -9/Mines | Core integrity fell below 20% 2525 | -9/Mines | Destroyed by as-46847 with Assembled Blade Last Messages --------------- 02515_ Lgt. Nuclear Core destroyed. 02515_ Destroyed Lgt. Nuclear Core. 02515_ as-28934 destroyed. 02517_ as-03819 destroyed. 02517_ as-02750 destroyed. 02517_ as-88949 destroyed. 02517_ as-99689 destroyed. 02517_ as-05454 destroyed. [Achievement: Quick And Dirty] 02517_ Rocket Launcher destroyed. 02517_ Destroyed Rocket Launcher. 02519_ Flight Unit destroyed. 02522_ The unstable cave ceiling collapses. 02524_ as-37237 suffers critical hit. 02524_ Destroyed Asb. Hover Unit. 02524_ Flight Unit destroyed. 02524_ System corrupted by crushing effect (+2). 02524_ Lgt. Assault Rifle destroyed. 02525_ The unstable cave ceiling collapses. [Achievement: First Step to Greatness] Map ----- +----------------------------------------------------+ | | | | | | | | | | | | | ????????????????????????????????????????? | | ????????????????????????????????????????? | | ????????????????????????????????????????? | | ????????????????????????????????????????? | | ????????????????????????????????????????? | | ????????????????????????????????????????? | | ?????????????????????##?????????????????? | | ????????????????????# #?#??????????????? | | ????????????????????" ??????????????? | | ???????????????????? #??????????????? | | ???????????????????? ???????????????? | | ???????????????????? #???????????????? | | ???????????????????? #???????????????? | | ???????????????????? #???????????????? | | ??????????????###### #????????????????? | | ?????????????## a #????????????????? | | ?????????????# a #????????????????? | | ????????????## ##???????????????? | | ???????????## aa% %% #???????????????# | | ???????????# @a #??????????????? | | ???????????# a aa ## #??????????????? | | ??????###?## ##??????????????? | | ?????## ## ######??????????????## | | ?????# #???????????????# | | ?????## #?????????????# | | ??????## ###### ?????????## | | ???????### ##?????# ????????# | | ?????????## #???????## ?????????# | | ??????????# #?????????? ??????????# | | ??????????# #??????????? #??????????# | | ??????????# #????????????##???????????# | | ??????????# #?????????????????????????# | | ??????????# #?????????????????????????### | | ??????????# #???????????????????????????? | | ??????????# #???????????????????????????? | | ??????????# #???????????????????????????? | | ??????????# #???????????????????????????? | | ??????????# #???????????????????????????? | | ??????????# #???????????????????????????? | | ???????#### #???????????????????????????? | | ???????# #???????????????????????????? | | ???????# ###???????????????????????????? | | ???????# #???##?????????????????????###? | | ??????## #??# ##???????????????????? #? | +----------------------------------------------------+ Best States ------------- Heat Dissipation 39 Energy Generation 14 Energy Capacity 250 Matter Stores 300 Matter Capacity 300 Sight Range 16 Terrain Scan Density 10 Evasion (%) 40 Item Schematics ----------------- None Robot Schematics ------------------ None Fabricated ------------ Nothing Alien Tech Used ----------------- None Achievements -------------- First Step to Greatness Librarian Quick And Dirty Tourist Challenges ------------ None Game ------ Seed RiotShadingStorage Manual? 0 Play Time 00:32:42 Cumulative 2.8 hours Start 2020.10.09 @ 11:33:02 End 2020.10.09 @ 12:02:12 Sessions 1 Manual Loads 0 Difficulty Rogue Special Mode None Game No. 9 Rogue 9 Adventurer 0 Explorer 0 Win Type - Total 0 Types 0/0/0/0/0/0/0/0/0 Lore% 12 Gallery% 5 Achievement% 7 Wizard Run 0 Options --------- ASCII 0 Keyboard 0 Movement Numpad Keybinds 0 Fullscreen 1 Font 18/SmallcapsGlow Map View 76x50 Tactical HUD 1 Map Filters NONE Filters NONE Steam 1 RUN: b0039068-ca4a-43ac-a5d7-3fe7b96da120